[Event "45th FIDE Womens Olympiad 2024"]
[Site "Budapest"]
[Date "2024.09.14"]
[Round "4.249"]
[White "Alazmi, Amani"]
[Black "Ravelomanana, Sabine"]
[Result "0-1"]
[ECO "A34"]
[WhiteElo "1673"]
[BlackElo "1926"]
[PlyCount "74"]
[EventDate "2024.09.05"]
[EventType "team-tourn"]
[EventCountry "HUN"]
[WhiteTeam "Kuwait"]
[BlackTeam "Madagascar"]
[WhiteTeamCountry "KUW"]
[BlackTeamCountry "MAD"]
[TimeControl "40/5400+30:1800+30"]

1. c4 e6 2. e4 c5 3. Nc3 Nc6 4. g3 Nge7 5. Bg2 Ng6 6. Nge2 Be7 7. O-O h5 8. h4 b6 9. d3 Bb7 10. f4 a6 11. f5 Nge5 12. Nf4 Bxh4 13. gxh4 Qxh4 14. Nh3 f6 15. Rf4 Qg3 16. Ne2 Qxd3 17. Qxd3 Nxd3 18. Rf1 e5 19. Rd1 Ndb4 20. Rd2 Nd8 21. a3 Nbc6 22. Rb1 a5 23. b3 Nf7 24. Nc3 Nd4 25. Nd5 Bxd5 26. cxd5 Nd6 27. Kh1 h4 28. Rf2 Kf7 29. Bb2 Rac8 30. Bxd4 cxd4 31. Rbb2 Rc3 32. Kh2 Rhc8 33. Ng1 Re3 34. Rfe2 Rcc3 35. Nf3 h3 36. Bh1 Rxb3 37. Rxe3 Rxb2+ {0-} 0-1

[Event "45th FIDE Womens Olympiad 2024"]
[Site "Budapest"]
[Date "2024.09.14"]
[Round "4.250"]
[White "Raharimanana, Faratiana"]
[Black "Alazemi, Aisha"]
[Result "1-0"]
[ECO "D02"]
[WhiteElo "1815"]
[BlackElo "1539"]
[PlyCount "99"]
[EventDate "2024.09.05"]
[EventType "team-tourn"]
[EventCountry "HUN"]
[WhiteTeam "Madagascar"]
[BlackTeam "Kuwait"]
[WhiteTeamCountry "MAD"]
[BlackTeamCountry "KUW"]
[TimeControl "40/5400+30:1800+30"]

1. d4 d5 2. Nf3 Nc6 3. Bf4 Bf5 4. e3 a6 5. c4 b5 6. cxb5 axb5 7. Bxb5 Bd7 8. Bxc6 Bxc6 9. Qc2 Ra6 10. Ne5 Qa8 11. Nc3 e6 12. O-O Nf6 13. Rfc1 Bd6 14. h3 O-O 15. a3 Rb8 16. Bh2 Be8 17. Nd3 Bxh2+ 18. Kxh2 Qc6 19. b4 Qd6+ 20. Kg1 c6 21. Nc5 Rab6 22. N3a4 Rb5 23. Qc3 Ra8 24. Nb2 Ne4 25. Nxe4 dxe4 26. Nc4 Qe7 27. Nd2 Qh4 28. Nf1 Rg5 29. Ng3 f5 30. Qe1 Bd7 31. Rc5 Rf8 32. Re5 Be8 33. a4 Bh5 34. Nxh5 Rxh5 35. f4 Qe7 36. Rc5 Rf6 37. Rxc6 h6 38. Rac1 Rg6 39. Kh2 Qf6 40. a5 Rxg2+ 41. Kxg2 Rh4 42. a6 Rxh3 43. Kxh3 Qg6 44. Qh4 Qf7 45. Rc7 Qg6 46. a7 Qg4+ 47. Qxg4 fxg4+ 48. Kxg4 h5+ 49. Kxh5 Kh7 50. Kg5 1-0

[Event "45th FIDE Womens Olympiad 2024"]
[Site "Budapest"]
[Date "2024.09.14"]
[Round "4.251"]
[White "Nema, Rabab"]
[Black "Randriatsiferana, Dimbiharentsoa Chris"]
[Result "1/2-1/2"]
[ECO "E80"]
[WhiteElo "1601"]
[BlackElo "1736"]
[PlyCount "74"]
[EventDate "2024.09.05"]
[EventType "team-tourn"]
[EventCountry "HUN"]
[WhiteTeam "Kuwait"]
[BlackTeam "Madagascar"]
[WhiteTeamCountry "KUW"]
[BlackTeamCountry "MAD"]
[TimeControl "40/5400+30:1800+30"]

1. d4 Nf6 2. c4 g6 3. Nc3 Bg7 4. e4 d6 5. f3 Nbd7 6. Be3 e5 7. d5 Nh5 8. Qd2 Qh4+ 9. Bf2 Qe7 10. Nge2 Nb6 11. b3 Bd7 12. g4 Nf6 13. O-O-O h5 14. g5 Nh7 15. h4 f5 16. exf5 Bxf5 17. Ng3 Nf8 18. Bd3 Bd7 19. Rhe1 O-O-O 20. a4 Be8 21. a5 Nbd7 22. Nge4 Nc5 23. Nxc5 dxc5 24. Ne4 b6 25. Qa2 Kb7 26. Bf1 Qf7 27. Bg2 Nd7 28. d6 c6 29. Kc2 Qf5 30. Ra1 b5 31. a6+ Ka8 32. Qa5 Rb8 33. Qc7 Nb6 34. Qxg7 bxc4 35. Qxh8 cxb3+ 36. Kc3 Qe6 37. Bf1 b2 1/2-1/2

[Event "45th FIDE Womens Olympiad 2024"]
[Site "Budapest"]
[Date "2024.09.14"]
[Round "4.252"]
[White "Tsinjoviniavo, Aina Mahasambatra"]
[Black "Ajbali, Ghaleyah"]
[Result "1-0"]
[ECO "B12"]
[WhiteElo "1662"]
[BlackElo "1513"]
[PlyCount "115"]
[EventDate "2024.09.05"]
[EventType "team-tourn"]
[EventCountry "HUN"]
[WhiteTeam "Madagascar"]
[BlackTeam "Kuwait"]
[WhiteTeamCountry "MAD"]
[BlackTeamCountry "KUW"]
[TimeControl "40/5400+30:1800+30"]

1. e4 c6 2. d4 d5 3. e5 c5 4. dxc5 Nc6 5. Nf3 Bg4 6. Be2 e6 7. Bf4 Bxc5 8. Nbd2 Nge7 9. O-O O-O 10. c3 Bxf3 11. Nxf3 Nf5 12. Qc2 h6 13. Bd3 f6 14. Bxf5 exf5 15. Qxf5 fxe5 16. Qe6+ Kh8 17. Nxe5 Nxe5 18. Bxe5 Kh7 19. Rad1 Qh4 20. Bg3 Qc4 21. Qxd5 Qxd5 22. Rxd5 Bb6 23. Rd7 Rae8 24. b4 Kg6 25. c4 Rf7 26. Rd6+ Rf6 27. c5 Rxd6 28. Bxd6 Re6 29. cxb6 Rxd6 30. bxa7 Ra6 31. b5 Rxa7 32. Ra1 Ra3 33. f3 Kh5 34. Kf2 Kh4 35. Ke2 Kg5 36. g3 Kf5 37. Kf2 b6 38. h3 g5 39. Re1 Rxa2+ 40. Re2 Ra4 41. Re8 Rb4 42. g4+ Kg6 43. Re6+ Kf7 44. Rxb6 Kg7 45. Kg3 Rb3 46. h4 gxh4+ 47. Kxh4 Rxf3 48. Rc6 Rb3 49. b6 Rb5 50. Rc7+ Kg6 51. b7 Kf6 52. Kg3 Kg6 53. Kf3 Rb3+ 54. Ke4 h5 55. gxh5+ Kxh5 56. Kf5 Rb5+ 57. Ke6 Kg6 58. Kd7 1-0

[Event "45th FIDE Womens Olympiad 2024"]
[Site "Budapest"]
[Date "2024.09.14"]
[Round "4.253"]
[White "Lopez L., Dairyn D."]
[Black "Ruddy, Rachel"]
[Result "1/2-1/2"]
[ECO "A48"]
[WhiteElo "1740"]
[BlackElo "1662"]
[PlyCount "106"]
[EventDate "2024.09.05"]
[EventType "team-tourn"]
[EventCountry "HUN"]
[WhiteTeam "Guatemala"]
[BlackTeam "Jersey"]
[WhiteTeamCountry "GUA"]
[BlackTeamCountry "JCI"]
[TimeControl "40/5400+30:1800+30"]

1. d4 Nf6 2. Nf3 g6 3. e3 Bg7 4. b3 d6 5. Bb2 O-O 6. Bd3 e5 7. dxe5 Nfd7 8. Nbd2 dxe5 9. e4 Nc6 10. Nc4 Re8 11. O-O Nc5 12. Ne3 Nd4 13. Nd2 Nxd3 14. cxd3 Ne6 15. Nf3 Nf4 16. Qc2 Qxd3 17. Qxc7 Ne2+ 18. Kh1 Qxe4 19. Rae1 Nd4 20. Nxd4 exd4 21. Nc2 Qc6 22. Qxc6 Rxe1 23. Rxe1 bxc6 24. Re8+ Bf8 25. Bxd4 a6 26. Nb4 Bb7 27. Rxa8 Bxa8 28. Nxa6 Bd6 29. Kg1 Kf8 30. Nc5 Bxc5 31. Bxc5+ Ke8 32. f4 Kd7 33. Kf2 Ke6 34. Ke3 Kd5 35. b4 f5 36. a4 Bb7 37. h3 h5 38. Kf3 Ke6 39. Kg3 Ba6 40. Kh4 Bf1 41. a5 Kf7 42. g4 hxg4 43. hxg4 fxg4 44. Kxg4 Bd3 45. Kg5 Bb5 46. f5 gxf5 47. Kxf5 Ke8 48. Ke6 Kd8 49. Kd6 Kc8 50. Ke7 Kb7 51. Kd7 Ka6 52. Kc7 Ba4 53. Kd6 Bb5 1/2-1/2

[Event "45th FIDE Womens Olympiad 2024"]
[Site "Budapest"]
[Date "2024.09.14"]
[Round "4.254"]
[White "Ashbrooke, Monika"]
[Black "Raymundo, Deycy Daniela"]
[Result "0-1"]
[ECO "D02"]
[WhiteElo "1650"]
[BlackElo "1728"]
[PlyCount "52"]
[EventDate "2024.09.05"]
[EventType "team-tourn"]
[EventCountry "HUN"]
[WhiteTeam "Jersey"]
[BlackTeam "Guatemala"]
[WhiteTeamCountry "JCI"]
[BlackTeamCountry "GUA"]
[TimeControl "40/5400+30:1800+30"]

1. d4 d5 2. Nf3 Nf6 3. g3 e6 4. Bg2 c5 5. O-O Be7 6. c4 Nc6 7. b3 dxc4 8. Ne5 Nxe5 9. dxe5 Qxd1 10. Rxd1 Ng4 11. Bb2 cxb3 12. axb3 f6 13. Nc3 O-O 14. exf6 Bxf6 15. Bf3 Ne5 16. Bg2 c4 17. Ne4 Nf3+ 18. Bxf3 Bxb2 19. Rab1 c3 20. Rxb2 cxb2 21. Rb1 Bd7 22. Rxb2 Bc6 23. Ng5 Bxf3 24. Nxe6 Rfe8 25. Nc7 Rac8 26. Nxe8 Rc1# {0-} 0-1

[Event "45th FIDE Womens Olympiad 2024"]
[Site "Budapest"]
[Date "2024.09.14"]
[Round "4.255"]
[White "Santiago Sontay, Jenny Fernanda"]
[Black "Forbes, Yasmin"]
[Result "1-0"]
[ECO "D00"]
[WhiteElo "1773"]
[BlackElo "1606"]
[PlyCount "37"]
[EventDate "2024.09.05"]
[EventType "team-tourn"]
[EventCountry "HUN"]
[WhiteTeam "Guatemala"]
[BlackTeam "Jersey"]
[WhiteTeamCountry "GUA"]
[BlackTeamCountry "JCI"]
[TimeControl "40/5400+30:1800+30"]

1. d4 d5 2. e3 Nf6 3. Bd3 c5 4. c3 e6 5. f4 Be7 6. Nf3 O-O 7. Ne5 b6 8. g4 Ba6 9. Bxa6 Nxa6 10. Nd2 h6 11. h4 Ne4 12. Nxe4 dxe4 13. g5 Nb8 14. Qh5 f6 15. Ng6 Qe8 16. gxh6 Kh7 17. Nxf8+ Qxf8 18. hxg7+ Kxg7 19. Rg1# 1-0